bitfinex/quotes_SOLUSD_20251202
["timestamp","ask_amount","ask_price","bid_price","bid_amount"]
[1764690566884,9.16688181,138.57,138.5,9.86688181]
[1764690567287,9.16688181,138.56,138.5,0.7]
[1764690567479,9.82688181,138.56,138.49,9.16688181]
[1764690567686,0.66,138.55,138.48,9.86688181]
[1764690567887,9.0,138.54,138.49,9.86688181]
[1764690568093,9.0,138.54,138.5,9.16688181]
[1764690568289,9.0,138.54,138.49,9.86688181]
[1764690568495,9.0,138.53,138.5,9.16688181]
[1764690568894,9.0,138.53,138.49,9.16688181]
[1764690569084,9.0,138.53,138.5,0.7]
[1764690569488,9.0,138.52,138.5,9.86688181]
[1764690570384,34.4285202,138.55,138.49,9.16688181]
[1764690570693,7.21865299,138.53,138.47,9.86688181]
[1764690570896,25.26528548,138.53,138.47,9.86688181]
[1764690571091,25.26528548,138.53,138.48,9.16688181]
[1764690571419,7.21865299,138.53,138.49,9.16688181]
[1764690571715,9.0,138.52,138.5,9.16688181]
[1764690571887,7.21865299,138.53,138.5,9.86688181]
[1764690572087,9.0,138.52,138.51,0.7]
[1764690572289,9.0,138.56,138.51,9.86688181]
[1764690572501,9.0,138.56,138.55,9.16688181]
[1764690572681,7.21448668,138.61,138.55,9.16688181]
[1764690572880,9.0,138.6,138.57,9.16688181]
[1764690573502,25.25178796,138.61,138.58,0.69]
[1764690573704,9.0,138.59,138.57,9.85688181]
[1764690574004,9.0,138.59,138.57,0.69]
[1764690574205,9.0,138.59,138.57,9.85688181]
[1764690574403,9.0,138.59,138.57,9.16688181]
[1764690574600,7.21604849,138.58,138.56,9.16688181]
[1764690574806,7.21604849,138.58,138.54,0.69]
[1764690574983,7.21604849,138.58,138.55,9.16688181]
[1764690575478,7.21604849,138.58,138.55,9.85688181]
[1764690575682,7.21604849,138.58,138.56,9.16688181]
[1764690575882,18.03516423,138.62,138.57,9.16688181]
[1764690576106,7.21344586,138.63,138.6,9.16688181]
[1764690576309,9.0,138.62,138.59,9.16688181]
[1764690576505,16.38136849,138.61,138.53,0.69]
[1764690576712,9.16688181,138.6,138.53,9.85688181]
[1764690576897,9.0,138.59,138.53,9.85688181]
[1764690577100,9.16688181,138.57,138.5,9.16688181]
[1764690577503,9.82688181,138.57,138.49,0.69]
[1764690577683,9.0,138.58,138.47,9.16688181]
[1764690577684,9.16688181,138.54,138.47,9.16688181]
[1764690578005,9.0,138.53,138.48,9.16688181]
[1764690578396,9.0,138.53,138.48,0.69]
[1764690578593,25.26710943,138.52,138.48,0.69]
[1764690580713,25.25252524,138.6,138.49,9.16688181]
[1764690580904,9.16688181,138.56,138.49,9.16688181]
[1764690581215,8.98,138.55,138.5,9.16688181]
[1764690581395,18.14688181,138.55,138.48,9.16688181]
[1764690581594,9.16688181,138.54,138.44,7.22334585]
[1764690581800,0.7,138.54,138.48,9.16688181]
[1764690582094,9.16688181,138.55,138.48,9.16688181]
[1764690582293,8.98,138.54,138.48,9.16688181]
[1764690582713,7.21761097,138.55,138.49,9.16688181]
[1764690582917,8.98,138.54,138.5,9.16688181]
[1764690583122,8.98,138.54,138.5,0.69]
[1764690583308,8.98,138.54,138.51,0.69]
[1764690584018,16.19856744,138.54,138.51,0.69]
[1764690584719,7.21856744,138.54,138.51,0.69]
[1764690585215,8.98,138.53,138.5,9.16688181]
[1764690585621,8.98,138.53,138.48,7.22095169]
[1764690585622,8.98,138.53,138.49,9.16688181]
[1764690585916,7.21856744,138.54,138.49,9.16688181]
[1764690586221,9.16688181,138.62,138.53,9.16688181]
[1764690586420,8.98,138.61,138.58,9.16688181]
[1764690586608,7.21344586,138.63,138.6,9.16688181]
[1764690586810,8.98,138.62,138.61,9.16688181]
[1764690587121,0.7,138.69,138.61,9.16688181]
[1764690587325,8.98,138.63,138.62,9.16688181]
[1764690587499,8.98,138.63,138.59,9.16688181]
[1764690587699,8.98,138.63,138.57,9.85688181]
[1764690587898,9.68,138.63,138.57,9.85688181]
[1764690588205,16.89353995,138.63,138.58,9.16688181]
[1764690588601,16.89353995,138.63,138.58,9.85688181]
[1764690588801,7.91361182,138.63,138.58,9.85688181]
[1764690588998,8.98,138.62,138.56,0.69]
[1764690589198,7.31306931,138.64,138.6,9.16688181]
[1764690589402,8.98,138.61,138.57,0.69]
[1764690589602,0.1,138.64,138.6,9.16688181]
[1764690589816,8.98,138.62,138.57,0.69]
[1764690590135,8.98,138.62,138.58,7.21604849]
[1764690590423,8.98,138.62,138.58,25.25616971]
[1764690590604,0.1,138.64,138.58,25.25616971]
[1764690590605,8.98,138.63,138.59,0.69]
[1764690591032,0.1,138.64,138.62,15.08162657]
[1764690591221,0.1,138.64,138.63,15.08162657]
[1764690591413,0.1,138.64,138.59,0.69]
[1764690591616,0.1,138.64,138.56,0.69]
[1764690591617,7.21344586,138.63,138.56,0.69]
[1764690591912,7.21344586,138.63,138.53,15.08162657]
[1764690591913,15.08162657,138.6,138.53,15.08162657]
[1764690592111,40.33779628,138.58,138.51,15.08162657]
[1764690592313,8.96,138.57,138.52,15.08162657]
[1764690592512,9.66,138.57,138.51,15.08162657]
[1764690592733,24.74162657,138.57,138.51,15.08162657]
[1764690592904,24.74162657,138.56,138.49,15.08162657]
[1764690593105,15.08162657,138.52,138.45,0.69]
[1764690593325,15.08162657,138.52,138.45,15.77162657]
[1764690593326,8.96,138.51,138.45,15.77162657]
[1764690593629,8.96,138.5,138.46,15.08162657]
[1764690593928,8.96,138.5,138.45,15.77162657]
[1764690594131,16.18024902,138.5,138.46,0.69]
[1764690594329,15.78162657,138.52,138.46,0.69]
[1764690594511,7.91931889,138.52,138.46,0.69]
[1764690594710,0.7,138.55,138.49,15.08162657]
[1764690594925,8.96,138.54,138.49,15.08162657]
[1764690595227,8.96,138.54,138.48,15.08162657]
[1764690595431,0.7,138.55,138.48,15.08162657]
[1764690595432,15.78162657,138.55,138.48,15.08162657]
[1764690595604,24.04162657,138.54,138.47,0.69]
[1764690595809,24.74162657,138.54,138.47,0.69]
[1764690596018,0.7,138.53,138.47,0.69]
[1764690596222,7.21917412,138.52,138.47,0.69]
[1764690596531,7.21917412,138.52,138.46,15.08162657]
[1764690596826,15.78162657,138.51,138.44,15.08162657]
[1764690597028,15.08162657,138.49,138.42,22.99590974]
[1764690597230,8.96,138.48,138.42,22.99590974]
[1764690597611,24.04162657,138.48,138.42,0.69]
[1764690597818,24.74162657,138.48,138.41,15.08162657]
[1764690598017,24.74162657,138.48,138.41,15.77162657]
[1764690598416,7.22178089,138.47,138.41,22.99653068]
[1764690598629,7.22178089,138.47,138.42,15.08162657]
[1764690598828,9.66,138.48,138.42,15.08162657]
[1764690599011,8.96,138.48,138.42,15.08162657]
[1764690599212,8.96,138.5,138.46,15.08162657]
[1764690599413,8.96,138.5,138.45,15.08162657]
[1764690599649,0.7,138.51,138.45,15.08162657]
[1764690599807,8.96,138.5,138.45,15.08162657]
[1764690600007,8.96,138.49,138.46,15.08162657]
[1764690600227,15.08162657,138.54,138.47,15.08162657]
[1764690600414,8.96,138.53,138.49,22.30236452]
[1764690600610,18.04213562,138.57,138.5,15.08162657]
[1764690600811,8.96,138.56,138.5,0.69]
[1764690601010,8.96,138.56,138.51,15.77162657]
[1764690601217,0.7,138.58,138.52,15.08162657]
[1764690601424,2.09011754,138.66,138.52,15.08162657]
[1764690601425,0.7,138.68,138.57,15.08162657]
[1764690601755,7.21250889,138.65,138.58,0.69]
[1764690602030,0.7,138.65,138.59,15.08162657]
[1764690602231,8.96,138.63,138.6,15.08162657]
[1764690602415,9.06,138.64,138.62,15.08162657]
[1764690602608,9.06,138.64,138.61,15.08162657]
[1764690602948,0.1,138.64,138.63,15.08162657]
[1764690603114,0.7,138.74,138.63,15.08162657]
[1764690603313,8.96,138.71,138.69,15.08162657]
[1764690603617,0.7,138.74,138.7,15.08162657]
[1764690603936,7.9077839,138.74,138.64,0.69]
[1764690604239,16.94880505,138.72,138.64,0.69]
[1764690604414,16.94880505,138.72,138.58,46.63135623]
[1764690604415,16.94880505,138.72,138.61,0.69]
[1764690604728,9.64,138.71,138.61,0.69]
[1764690604966,15.08162657,138.68,138.62,15.08162657]
[1764690605113,8.94,138.67,138.61,15.08162657]
[1764690605315,15.08162657,138.64,138.56,0.69]
[1764690605634,15.08162657,138.65,138.59,15.08162657]
[1764690605834,15.08162657,138.64,138.58,15.08162657]
[1764690606131,8.94,138.63,138.6,15.08162657]
[1764690606315,8.94,138.63,138.56,0.69]
[1764690606517,8.94,138.63,138.51,0.69]
[1764690606518,15.08162657,138.6,138.51,0.69]
[1764690606724,15.08162657,138.6,138.54,15.08162657]
[1764690607034,15.08162657,138.58,138.51,15.08162657]
[1764690607238,8.94,138.6,138.57,15.08162657]
[1764690607534,8.94,138.6,138.59,15.08162657]
[1764690608024,8.94,138.6,138.53,0.69]
[1764690608227,0.7,138.65,138.59,15.08162657]
[1764690608433,8.94,138.65,138.54,25.2634618]
[1764690608625,49.96509381,138.65,138.58,15.08162657]
[1764690608936,0.7,138.64,138.59,15.08162657]
[1764690609139,0.7,138.64,138.6,15.08162657]
[1764690609432,0.7,138.64,138.58,15.08162657]
[1764690609631,0.7,138.64,138.57,15.08162657]
[1764690609825,15.78162657,138.64,138.58,15.08162657]
[1764690610018,0.7,138.64,138.58,15.08162657]
[1764690610340,0.7,138.63,138.58,15.08162657]
[1764690610633,15.08162657,138.6,138.54,15.08162657]
[1764690610820,8.94,138.59,138.54,15.08162657]
[1764690611135,0.7,138.58,138.53,15.08162657]
[1764690611332,15.08162657,138.57,138.51,15.08162657]
[1764690611518,8.94,138.56,138.55,15.08162657]
[1764690611833,8.94,138.58,138.55,15.08162657]
[1764690612031,7.88348867,138.63,138.57,15.08162657]
[1764690612232,7.88348867,138.63,138.58,15.08162657]
[1764690612542,7.21301297,138.64,138.59,15.08162657]
[1764690612717,7.88256768,138.65,138.62,15.08162657]
[1764690612915,18.02885252,138.67,138.62,15.08162657]
[1764690613121,15.08162657,138.68,138.62,15.08162657]
[1764690613345,8.94,138.67,138.62,15.08162657]
[1764690613521,15.08162657,138.66,138.6,15.08162657]
[1764690613720,15.08162657,138.64,138.58,15.08162657]
[1764690613922,15.08162657,138.64,138.57,15.08162657]
[1764690614218,0.67,138.63,138.58,15.08162657]
[1764690614615,7.21405539,138.62,138.56,7.21703201]
[1764690614953,15.08162657,138.57,138.5,15.08162657]
[1764690615116,8.92,138.56,138.5,15.08162657]
[1764690615311,24.67162657,138.56,138.49,15.08162657]
[1764690615634,24.67162657,138.56,138.48,0.2]
[1764690615635,15.08162657,138.54,138.48,0.2]
[1764690615838,0.67,138.55,138.48,0.2]
[1764690615839,15.08162657,138.53,138.48,0.2]
[1764690616219,0.67,138.52,138.48,0.2]
[1764690616416,8.92,138.51,138.48,0.2]
[1764690616614,7.2202166,138.5,138.48,0.2]
[1764690616819,8.92,138.49,138.48,0.2]
[1764690617239,7.2202166,138.5,138.48,0.2]
[1764690617419,24.5872129,138.49,138.48,0.2]
[1764690617847,9.59,138.49,138.48,0.2]
[1764690618641,16.81073795,138.49,138.48,0.2]
[1764690619221,31.80795085,138.49,138.48,0.2]
[1764690619417,77.04348553,138.49,138.35,7.4280219]
[1764690619658,0.67,138.48,138.39,14.9972129]
[1764690620002,14.9972129,138.44,138.37,14.9972129]
[1764690620120,8.92,138.43,138.38,14.9972129]
[1764690620523,9.59,138.43,138.38,14.9972129]
[1764690620831,8.92,138.42,138.39,14.9972129]
[1764690621345,8.92,138.42,138.38,14.9972129]
[1764690621542,9.59,138.41,138.36,14.9972129]
[1764690621736,9.59,138.41,138.37,14.9972129]
[1764690622342,0.67,138.4,138.35,15.1972129]
[1764690622730,7.22595563,138.39,138.35,15.1972129]
[1764690623138,7.89559222,138.4,138.35,15.1972129]
[1764690623427,7.89559222,138.4,138.35,0.2]
[1764690623628,0.67,138.39,138.35,15.1972129]
[1764690624142,7.22438953,138.42,138.37,14.9972129]
[1764690624344,8.92,138.41,138.38,14.9972129]
[1764690624727,7.22543352,138.4,138.37,14.9972129]
[1764690625351,0.67,138.39,138.36,14.9972129]
[1764690625654,9.59,138.39,138.35,15.1972129]
[1764690625848,8.92,138.39,138.36,14.9972129]
[1764690626055,8.92,138.38,138.37,14.9972129]
[1764690626232,7.89497924,138.41,138.37,14.9972129]
[1764690626432,8.92,138.4,138.38,14.9972129]
[1764690626746,7.22595563,138.39,138.36,14.9972129]
[1764690626946,7.22595563,138.39,138.37,14.9972129]
[1764690627442,9.59,138.38,138.35,0.2]
[1764690628166,0.67,138.37,138.33,0.2]
[1764690628325,23.9172129,138.36,138.33,0.2]
[1764690628529,14.9972129,138.34,138.33,0.2]
[1764690628729,22.22578019,138.34,138.33,0.2]
[1764690628954,22.89578019,138.34,138.32,0.2]
[1764690629147,15.6672129,138.33,138.32,0.2]
[1764690629536,9.59,138.33,138.32,0.2]
[1764690630338,0.67,138.33,138.32,0.2]
[1764690630750,8.92,138.33,138.32,0.2]
[1764690630945,7.22856729,138.34,138.32,0.2]
[1764690631141,8.92,138.33,138.32,0.2]
[1764690631343,7.22856729,138.34,138.32,0.2]
[1764690631545,8.92,138.33,138.32,0.2]
[1764690631743,9.59,138.33,138.32,0.2]
[1764690632831,16.81908985,138.33,138.32,0.2]
[1764690633032,7.89908985,138.33,138.32,0.2]
[1764690633278,7.22908985,138.33,138.32,0.2]
[1764690633447,16.84908985,138.33,138.32,0.2]
[1764690633767,7.22869322,138.34,138.32,0.2]
[1764690633952,8.92,138.33,138.32,0.2]
[1764690634156,7.22869322,138.34,138.32,15.1972129]
[1764690634462,8.92,138.33,138.32,0.2]
[1764690635207,31.84630275,138.33,138.32,1e-08]
[1764690635569,16.84908985,138.33,138.32,1e-08]
[1764690635776,7.92908985,138.33,138.32,1e-08]
[1764690635981,16.84908985,138.33,138.32,1e-08]
[1764690636176,31.84630275,138.33,138.32,1e-08]
[1764690636386,32.01568398,138.33,138.32,1e-08]
[1764690637599,49.38840862,138.33,138.28,1e-08]
[1764690637805,15.16659413,138.29,138.28,1e-08]
[1764690638122,24.06659413,138.29,138.28,1e-08]
[1764690638282,24.76659413,138.29,138.28,1e-08]
[1764690639120,31.99777498,138.29,138.28,1e-08]
[1764690640194,113.4875356,138.29,138.21,3.28822402]
[1764690640393,0.7,138.28,138.21,3.28822402]
[1764690640712,15.16659413,138.22,138.21,3.28822402]
[1764690641024,24.06659413,138.22,138.21,3.28822402]
[1764690641193,16.134843,138.22,138.18,0.2]
[1764690641393,15.16659413,138.19,138.18,0.2]
[1764690641602,24.06659413,138.19,138.18,0.2]
[1764690641798,24.78659413,138.19,138.18,0.2]
[1764690641997,39.23318826,138.19,138.06,0.66]
[1764690642216,15.16659413,138.14,138.08,15.16659413]
[1764690642412,72.41105785,138.22,138.03,18.11115981]
[1764690642616,15.16659413,138.18,138.09,0.86]
[1764690642915,15.16659413,138.14,138.09,0.2]
[1764690643093,8.9,138.13,138.09,0.2]
[1764690643413,15.16659413,138.17,138.11,15.16659413]
[1764690643618,0.72,138.18,138.12,15.16659413]
[1764690643799,8.9,138.17,138.14,15.16659413]
[1764690643999,8.9,138.16,138.15,15.16659413]
[1764690644205,0.72,138.2,138.1,0.66]
[1764690644398,8.9,138.19,138.14,15.16659413]
[1764690644598,24.06659413,138.19,138.1,0.66]
[1764690644811,15.16659413,138.19,138.1,0.66]
[1764690645000,0.72,138.2,138.1,0.66]
[1764690645205,8.9,138.19,138.1,0.66]
[1764690645502,7.23693732,138.18,138.12,15.16659413]
[1764690645706,25.32928064,138.18,138.12,15.16659413]
[1764690646095,26.04928064,138.18,138.12,15.16659413]
[1764690646301,26.04928064,138.18,138.13,15.16659413]
[1764690646623,17.36,138.23,138.17,15.16659413]
[1764690646806,50.10854463,138.22,138.15,15.16659413]
[1764690647002,15.16659413,138.2,138.14,15.16659413]
[1764690647194,15.88659413,138.21,138.15,15.16659413]
[1764690647401,31.30248414,138.2,138.14,15.16659413]
[1764690647605,50.11220917,138.2,138.13,15.82659413]
[1764690647807,85.57165924,138.2,138.13,15.82659413]
[1764690648014,15.16659413,138.18,138.12,15.16659413]
[1764690648215,8.9,138.17,138.11,15.82659413]
[1764690648626,8.9,138.17,138.16,15.16659413]
[1764690648998,8.9,138.17,138.16,15.82659413]
[1764690649316,0.72,138.26,138.16,15.82659413]
[1764690649520,16.13327305,138.25,138.2,15.16659413]
[1764690649694,26.98525809,138.24,138.18,15.16659413]
[1764690649899,15.16659413,138.23,138.17,15.82659413]
[1764690650105,42.87185222,138.24,138.17,15.82659413]
[1764690650292,26.98525809,138.24,138.17,15.82659413]
[1764690650493,0.72,138.23,138.17,15.82659413]
[1764690650697,24.06659413,138.22,138.15,15.82659413]
[1764690650916,24.06659413,138.22,138.16,15.16659413]
[1764690651122,24.78659413,138.22,138.16,15.16659413]
[1764690651301,25.32378264,138.21,138.16,15.16659413]
[1764690651501,8.9,138.2,138.15,15.82659413]
[1764690651802,8.9,138.2,138.16,15.16659413]
[1764690652203,9.62,138.2,138.16,15.16659413]
[1764690652394,0.72,138.2,138.16,9.2239057]
[1764690652598,8.9,138.19,138.15,9.2239057]
[1764690652798,8.9,138.19,138.14,9.2239057]
[1764690652997,8.9,138.18,138.15,9.2239057]
[1764690653318,8.9,138.18,138.13,0.66]
[1764690653319,7.23746109,138.17,138.14,9.2239057]
[1764690653624,25.33111383,138.17,138.13,0.66]
[1764690653924,9.2239057,138.22,138.16,9.2239057]
[1764690654126,8.9,138.21,138.16,9.2239057]
[1764690654621,8.9,138.2,138.16,9.2239057]
[1764690654927,8.9,138.2,138.15,9.2239057]
[1764690655123,8.9,138.2,138.16,9.2239057]
[1764690655307,16.1359811,138.2,138.16,9.2239057]
[1764690655511,0.72,138.27,138.17,0.66]
[1764690655712,26.0254732,138.31,138.23,9.2239057]
[1764690656021,9.2239057,138.28,138.22,9.2239057]
[1764690656219,0.72,138.3,138.21,9.2239057]
[1764690656426,8.9,138.29,138.17,0.66]
[1764690656614,8.9,138.29,138.24,9.2239057]
[1764690656922,9.2239057,138.26,138.17,0.66]
[1764690657221,8.9,138.25,138.19,9.2239057]
[1764690657422,8.9,138.24,138.19,9.2239057]
[1764690657727,8.88,138.23,138.19,9.8839057]
[1764690658105,18.8239057,138.23,138.17,0.66]
[1764690658318,18.1039057,138.23,138.17,0.66]
[1764690658714,8.88,138.23,138.17,9.8839057]
[1764690658907,8.88,138.23,138.18,9.2239057]
[1764690659214,8.88,138.23,138.17,0.66]
[1764690659215,8.88,138.22,138.17,9.8839057]
[1764690659909,8.88,138.22,138.18,0.66]
[1764690660105,8.88,138.21,138.18,9.8839057]
[1764690660309,36.73152266,138.34,138.18,9.8839057]
[1764690660310,21.70799348,138.35,138.2,9.2239057]
[1764690660526,21.70799348,138.35,138.17,7.23724952]
[1764690660527,0.72,138.34,138.19,0.66]
[1764690660833,9.2239057,138.32,138.25,9.2239057]
[1764690661035,9.2239057,138.32,138.25,9.8839057]
[1764690661234,18.075338,138.31,138.26,9.2239057]
[1764690661429,0.1,138.38,138.3,9.2239057]
[1764690661740,0.72,138.54,138.37,18.4478114]
[1764690661908,9.2239057,138.51,138.38,9.2239057]
[1764690662229,9.2239057,138.46,138.39,9.2239057]
[1764690662414,8.88,138.45,138.38,0.66]
[1764690662614,0.72,138.58,138.41,13.49792825]
[1764690662925,13.49792825,138.5,138.43,13.49792825]
[1764690663231,8.88,138.49,138.45,13.49792825]
[1764690663405,36.07763907,138.59,138.38,18.72582869]
[1764690663406,7.21925239,138.52,138.46,13.49792825]
[1764690663613,7.21925239,138.52,138.47,13.49792825]
[1764690663812,7.21925239,138.52,138.41,7.22482216]
[1764690664012,7.21925239,138.52,138.46,13.49792825]
[1764690664013,8.88,138.51,138.46,13.49792825]
[1764690664213,7.21925239,138.52,138.47,13.49792825]
[1764690664523,8.88,138.51,138.47,13.49792825]
[1764690664729,25.2671877,138.52,138.47,14.15792825]
[1764690665057,0.72,138.51,138.34,8.88]
[1764690665212,20.7186662,138.49,138.43,0.66]
[1764690665414,13.49792825,138.48,138.34,8.88]
[1764690665623,0.72,138.48,138.4,13.49792825]
[1764690665817,13.49792825,138.45,138.35,0.66]
[1764690666013,8.88,138.44,138.41,13.49792825]
[1764690666216,13.49792825,138.42,138.36,0.66]
[1764690666421,8.88,138.43,138.36,0.66]
[1764690666619,13.49792825,138.43,138.36,14.15792825]
[1764690666813,8.88,138.42,138.36,14.15792825]
[1764690667018,8.86,138.41,138.39,13.49792825]
[1764690667227,31.55320593,138.47,138.39,13.49792825]
[1764690667421,13.49792825,138.45,138.39,0.66]
[1764690667833,13.49792825,138.44,138.39,0.66]
[1764690668032,8.86,138.47,138.43,13.49792825]
[1764690668338,7.21969532,138.51,138.39,0.66]
[1764690668339,13.49792825,138.49,138.39,0.66]
[1764690668512,13.49792825,138.41,138.17,24.21381558]
[1764690668712,13.49792825,138.39,138.35,0.66]
[1764690668944,22.35792825,138.4,138.35,0.66]
[1764690669238,7.22595563,138.39,138.32,0.66]
[1764690669441,13.49792825,138.38,138.32,0.66]
[1764690669614,8.86,138.37,138.32,0.66]
[1764690669934,0.72,138.4,138.33,13.49792825]
[1764690670139,8.86,138.39,138.34,13.49792825]
[1764690670433,25.97616971,138.58,138.38,13.49792825]
[1764690670612,13.49792825,138.48,138.33,0.66]
[1764690670812,13.49792825,138.46,138.33,0.66]
[1764690671031,13.49792825,138.44,138.37,13.49792825]
[1764690671230,13.49792825,138.43,138.36,13.49792825]
[1764690671430,0.72,138.49,138.33,7.88900788]
[1764690671633,8.86,138.48,138.41,13.49792825]
[1764690671842,13.49792825,138.47,138.4,13.49792825]
[1764690672039,13.49792825,138.47,138.39,13.49792825]
[1764690672424,13.49792825,138.45,138.33,25.30173252]
[1764690672624,13.49792825,138.44,138.37,14.15792825]
[1764690672826,22.35792825,138.43,138.37,0.66]
[1764690673029,22.35792825,138.43,138.36,13.49792825]
[1764690673030,22.35792825,138.43,138.34,0.66]
[1764690673234,9.55,138.43,138.37,13.49792825]
[1764690673545,16.08438953,138.42,138.37,13.49792825]
[1764690673717,16.08438953,138.42,138.36,13.49792825]
[1764690673921,7.22438953,138.42,138.38,13.49792825]
[1764690674121,8.86,138.41,138.38,13.49792825]
[1764690674426,7.22438953,138.42,138.38,13.49792825]
[1764690674638,7.22397097,138.43,138.38,13.49792825]
[1764690674843,8.86,138.41,138.38,13.49792825]
[1764690675351,7.91397097,138.43,138.38,13.49792825]
[1764690675652,0.69,138.52,138.42,13.49792825]
[1764690675834,14.18792825,138.5,138.43,13.49792825]
[1764690676144,13.49792825,138.49,138.42,13.49792825]
[1764690676349,0.69,138.49,138.4,13.49792825]
[1764690676656,0.69,138.49,138.44,13.49792825]
[1764690676853,8.86,138.48,138.44,13.49792825]
[1764690677148,8.86,138.47,138.44,13.49792825]
[1764690677331,7.21969532,138.51,138.45,13.49792825]
[1764690677535,8.86,138.5,138.45,13.49792825]
[1764690677850,8.86,138.49,138.47,13.49792825]
[1764690678043,7.21922786,138.52,138.48,13.49792825]
[1764690678356,7.21874075,138.53,138.48,13.49792825]
[1764690678654,8.84,138.52,138.49,13.49792825]
[1764690678832,8.84,138.51,138.49,13.49792825]
[1764690679150,7.21773791,138.55,138.5,14.15792825]
[1764690679336,8.34,138.54,138.52,13.49792825]
[1764690679536,0.69,138.59,138.53,13.49792825]
[1764690679735,8.84,138.58,138.51,0.66]
[1764690680079,22.33792825,138.58,138.51,27.49792825]
[1764690680250,23.02792825,138.58,138.51,27.49792825]
[1764690680451,9.53,138.58,138.51,27.49792825]
[1764690681053,7.21656924,138.57,138.51,14.0]
[1764690681354,7.21656924,138.57,138.51,27.49792825]
[1764690681540,25.25799234,138.57,138.51,14.0]
[1764690681746,39.44592059,138.57,138.51,14.0]
[1764690681946,14.18792825,138.56,138.51,14.0]
[1764690682252,0.69,138.56,138.5,13.49792825]
[1764690682558,16.05656924,138.57,138.55,9.17306659]
[1764690682727,7.21552781,138.59,138.55,9.17306659]
[1764690682928,8.84,138.58,138.55,9.17306659]
[1764690683254,7.21656924,138.57,138.55,9.17306659]
[1764690683453,36.17000942,138.62,138.55,9.17306659]
[1764690683454,0.1,138.62,138.55,9.17306659]
[1764690683630,0.1,138.62,138.52,8.84]
[1764690683952,0.1,138.62,138.59,9.17306659]
[1764690684158,0.1,138.62,138.61,9.17306659]
[1764690684529,0.1,138.62,138.52,61.36298006]
[1764690684729,0.1,138.62,138.6,9.17306659]
[1764690685229,0.1,138.62,138.5,61.37166982]
[1764690685552,0.1,138.62,138.61,9.17306659]
[1764690685855,0.1,138.62,138.6,9.17306659]
[1764690686156,0.1,138.62,138.61,9.17306659]
[1764690686539,0.1,138.62,138.5,61.37166982]
[1764690686773,0.1,138.62,138.6,9.17306659]
[1764690686940,0.1,138.62,138.59,9.17306659]
[1764690687142,0.1,138.62,138.61,9.17306659]
[1764690687454,0.1,138.62,138.6,9.17306659]
[1764690688239,0.1,138.62,138.53,18.0460983]
[1764690688441,0.1,138.62,138.59,9.17306659]
[1764690689339,0.1,138.62,138.6,9.17306659]
[1764690689663,0.1,138.65,138.61,9.17306659]
[1764690689845,0.1,138.65,138.64,9.17306659]
[1764690690028,0.1,138.65,138.6,9.17306659]
[1764690690233,0.1,138.72,138.64,9.17306659]
[1764690690531,0.1,138.72,138.61,61.32313684]
[1764690690864,0.1,138.72,138.61,25.2507034]
[1764690691361,0.1,138.72,138.71,18.34613318]
[1764690691666,0.69,138.81,138.71,18.34613318]
[1764690691835,0.69,138.81,138.77,9.17306659]
[1764690692036,0.69,138.81,138.78,9.17306659]
[1764690692336,0.1,138.87,138.8,9.17306659]
[1764690692552,0.69,138.85,138.72,16.02876585]
[1764690692852,0.69,138.85,138.8,9.17306659]
[1764690693031,0.79,138.83,138.79,9.17306659]
[1764690693233,0.79,138.83,138.77,9.17306659]
[1764690693434,0.79,138.83,138.73,9.17306659]
[1764690693662,9.17306659,138.81,138.74,9.17306659]
[1764690693851,0.79,138.83,138.67,8.82]
[1764690694050,0.1,138.83,138.79,9.17306659]
[1764690694364,0.1,138.83,138.74,8.82]
[1764690695108,0.1,138.83,138.7,8.82]
[1764690695761,0.1,138.86,138.71,9.17306659]
[1764690695967,0.1,138.86,138.85,9.17306659]
[1764690696145,0.1,138.86,138.82,7.20349115]
[1764690696467,0.1,138.86,138.85,9.17306659]